bitfinex/quotes_BTCUSD_20250829
["timestamp","ask_amount","ask_price","bid_price","bid_amount"]
[1756463802051,0.28666292,110160.0,110150.0,0.40968058]
[1756463802325,0.28866292,110160.0,110150.0,0.22811]
[1756463802706,0.33598404,110160.0,110150.0,0.40968058]
[1756463802904,0.33398404,110160.0,110150.0,0.40968058]
[1756463803309,0.3197753,110160.0,110150.0,0.40968058]
[1756463803549,0.3197753,110160.0,110150.0,0.22304]
[1756463803732,0.3177753,110160.0,110150.0,0.22304]
[1756463803989,0.3187753,110160.0,110150.0,0.22304]
[1756463805319,0.3187753,110160.0,110150.0,0.22513]
[1756463805517,0.3187753,110160.0,110150.0,0.22811]
[1756463809094,0.33298398,110160.0,110150.0,0.22811]
[1756463810448,0.33302571,110160.0,110150.0,0.22811]
[1756463811117,0.33302571,110160.0,110150.0,0.40968058]
[1756463811991,0.33302571,110160.0,110150.0,0.22811]
[1756463814047,0.33302645,110160.0,110150.0,0.22811]
[1756463814735,0.33302645,110160.0,110150.0,0.07491]
[1756463815017,0.67603645,110160.0,110150.0,0.223]
[1756463815214,0.67603645,110160.0,110130.0,0.06984]
[1756463815215,0.18158707,110140.0,110130.0,0.06984]
[1756463815484,0.58984341,110140.0,110130.0,0.22296]
[1756463815684,0.59185341,110140.0,110130.0,0.22296]
[1756463815959,0.61916341,110140.0,110130.0,0.22296]
[1756463816308,0.61916341,110140.0,110130.0,0.22496]
[1756463816508,0.61916341,110140.0,110130.0,0.22702]
[1756463816739,0.61916341,110140.0,110130.0,0.23218]
[1756463816938,0.61916341,110140.0,110130.0,0.22818]
[1756463817158,0.62016341,110140.0,110130.0,0.22818]
[1756463818927,0.52160355,110130.0,110120.0,0.00014323]
[1756463819150,5.66144516,110130.0,110120.0,0.00014323]
[1756463819379,5.66645516,110130.0,110120.0,0.15326323]
[1756463819813,5.68067014,110130.0,110120.0,0.15326323]
[1756463820235,5.68066186,110130.0,110120.0,0.15526323]
[1756463820826,0.66277485,110130.0,110120.0,0.15326323]
[1756463820994,0.67764141,110130.0,110120.0,0.15326323]
[1756463821200,0.67964141,110130.0,110120.0,0.15326323]
[1756463821435,0.65803519,110130.0,110120.0,0.15326323]
[1756463821665,0.65803512,110130.0,110120.0,0.15326323]
[1756463821860,0.66003512,110130.0,110120.0,0.15326323]
[1756463822069,0.66302512,110130.0,110120.0,0.15326323]
[1756463822272,0.66402512,110130.0,110120.0,0.15326323]
[1756463822517,0.68360477,110130.0,110120.0,0.15326323]
[1756463822783,0.68061477,110130.0,110120.0,0.15326323]
[1756463823433,0.66103512,110130.0,110120.0,0.15326323]
[1756463824976,0.68835012,110130.0,110120.0,0.15326323]
[1756463826363,0.68835012,110130.0,110120.0,0.15848323]
[1756463826810,0.68633012,110130.0,110120.0,0.15848323]
[1756463827026,0.68831012,110130.0,110120.0,0.15326323]
[1756463827240,0.59797764,110130.0,110120.0,0.15848323]
[1756463828139,0.59597764,110130.0,110120.0,0.15848323]
[1756463828890,0.59497764,110130.0,110120.0,0.15848323]
[1756463829219,0.59497764,110130.0,110120.0,0.15948323]
[1756463829476,0.67824584,110130.0,110120.0,0.00114323]
[1756463829715,0.68127584,110130.0,110120.0,0.15430323]
[1756463829901,0.67824584,110130.0,110120.0,0.15430323]
[1756463830378,0.67824584,110130.0,110120.0,0.15636323]
[1756463830813,0.66125458,110130.0,110120.0,0.15636323]
[1756463831028,0.67822596,110130.0,110120.0,0.15636323]
[1756463831789,0.66401098,110130.0,110120.0,0.15636323]
[1756463832547,0.58074278,110130.0,110120.0,0.15952323]
[1756463833953,0.58272278,110130.0,110120.0,0.15952323]
[1756463834197,0.24272278,110130.0,110120.0,0.15952323]
[1756463834398,0.24074278,110130.0,110120.0,0.15952323]
[1756463835188,0.2549569,110130.0,110120.0,0.15952323]
[1756463836173,0.5949569,110130.0,110120.0,0.15952323]
[1756463837914,0.5969369,110130.0,110120.0,0.15952323]
[1756463838131,0.59694587,110130.0,110120.0,0.15952323]
[1756463838966,0.67843089,110130.0,110120.0,0.15430323]
[1756463839985,0.67843089,110130.0,110120.0,0.00114323]
[1756463840186,0.68146089,110130.0,110120.0,0.15430323]
[1756463840398,0.70104043,110130.0,110120.0,0.15430323]
[1756463840842,0.69801043,110130.0,110120.0,0.15430323]
[1756463841249,0.70001043,110130.0,110120.0,0.15430323]
[1756463841654,0.69802439,110130.0,110120.0,0.15430323]
[1756463841863,0.70005381,110130.0,110120.0,0.15430323]
[1756463842065,0.70005381,110130.0,110120.0,0.15330323]
[1756463843099,0.70105381,110130.0,110120.0,0.15330323]
[1756463843515,0.70005381,110130.0,110120.0,0.15330323]
[1756463843908,0.70105381,110130.0,110120.0,0.15330323]
[1756463844576,0.72560956,110130.0,110120.0,0.15330323]
[1756463844998,0.72560956,110130.0,110120.0,0.15835323]
[1756463845432,0.72564774,110130.0,110120.0,0.15835323]
[1756463846315,0.09602342,110130.0,110120.0,0.33405857]
[1756463846766,0.06222976,110130.0,110120.0,0.33405857]
[1756463847181,0.06122976,110130.0,110120.0,0.33405857]
[1756463847400,0.05922976,110130.0,110120.0,0.33405857]
[1756463848513,0.05922976,110130.0,110120.0,0.33605857]
[1756463848906,0.05924101,110130.0,110120.0,0.42435489]
[1756463849162,0.05924101,110130.0,110120.0,0.42335489]
[1756463849378,0.05924101,110130.0,110120.0,0.42535489]
[1756463849753,0.05924101,110130.0,110120.0,1.54505588]
[1756463849970,0.03192601,110130.0,110120.0,1.39766736]
[1756463850174,0.03192601,110130.0,110120.0,0.36626269]
[1756463850418,0.03192601,110130.0,110120.0,0.51938269]
[1756463851100,0.02553945,110130.0,110120.0,0.51938269]
[1756463852608,0.027307,110140.0,110130.0,0.18160355]
[1756463852845,0.05919277,110140.0,110130.0,0.18463355]
[1756463853134,0.05919277,110140.0,110130.0,0.18665355]
[1756463855694,0.05919277,110140.0,110130.0,0.18765355]
[1756463857341,0.05916842,110140.0,110130.0,0.18765355]
[1756463859587,0.24075549,110140.0,110130.0,0.34077355]
[1756463860005,0.24273549,110140.0,110130.0,0.34077355]
[1756463860217,0.05916842,110140.0,110130.0,0.34077355]
[1756463861584,0.24075549,110140.0,110130.0,0.34077355]
[1756463861798,0.05916842,110140.0,110130.0,0.34077355]
[1756463862023,0.05916842,110140.0,110130.0,0.41067217]
[1756463862861,0.05916842,110140.0,110130.0,0.41063217]
[1756463863365,0.03580156,110140.0,110130.0,0.41063217]
[1756463863589,0.0591616,110140.0,110130.0,0.41063217]
[1756463864841,0.0591616,110140.0,110130.0,0.34073355]
[1756463865637,0.05279068,110140.0,110130.0,1.46043454]
[1756463865847,0.02548368,110140.0,110130.0,1.46043454]
[1756463866030,0.02548368,110140.0,110130.0,0.42902987]
[1756463866416,0.02548368,110140.0,110130.0,0.42802987]
[1756463866827,0.02548368,110140.0,110130.0,0.43002987]
[1756463867036,0.02548368,110140.0,110130.0,0.51248307]
[1756463867237,0.02548368,110140.0,110130.0,0.51048307]
[1756463867642,0.02648368,110140.0,110130.0,0.36640307]
[1756463867848,0.02648368,110140.0,110130.0,0.51448307]
[1756463868321,0.02648368,110140.0,110130.0,0.51848307]
[1756463868727,0.02148368,110140.0,110130.0,0.51848307]
[1756463870200,0.02148368,110140.0,110130.0,0.43602987]
[1756463870352,0.02148368,110140.0,110130.0,0.28294987]
[1756463870560,0.02148368,110140.0,110130.0,0.43602987]
[1756463871952,0.02148368,110140.0,110130.0,0.28294987]
[1756463872187,0.02148368,110140.0,110130.0,0.43602987]
[1756463872403,0.02148368,110140.0,110130.0,0.52432619]
[1756463874008,0.01798912,110140.0,110130.0,0.52432619]
[1756463874172,0.0180102,110140.0,110130.0,0.52432619]
[1756463874962,0.0180102,110140.0,110130.0,1.55573086]
[1756463875429,0.0180102,110140.0,110130.0,0.52432619]
[1756463875790,0.0180102,110140.0,110130.0,0.59416619]
[1756463877712,0.01803216,110140.0,110130.0,0.59416619]
[1756463877922,0.01803216,110140.0,110130.0,0.44108619]
[1756463878377,0.01803216,110140.0,110130.0,0.59412619]
[1756463880939,0.0265472,110140.0,110130.0,0.59412619]
[1756463882152,0.0265472,110140.0,110130.0,0.44108619]
[1756463882432,0.0285272,110140.0,110130.0,0.44108619]
[1756463882669,0.03491359,110140.0,110130.0,0.58907619]
[1756463882893,0.03491359,110140.0,110130.0,0.59419619]
[1756463883409,0.03491359,110140.0,110130.0,0.44115619]
[1756463883604,0.03491359,110140.0,110130.0,0.40848355]
[1756463883605,0.21853066,110140.0,110130.0,0.40848355]
[1756463883826,0.28916211,110140.0,110130.0,0.07484]
[1756463884039,0.31646911,110140.0,110130.0,0.22788]
[1756463884251,0.38731927,110140.0,110130.0,0.22788]
[1756463884470,0.72731927,110140.0,110130.0,0.22388]
[1756463884926,0.72731927,110140.0,110130.0,0.22488]
[1756463885127,0.72731927,110140.0,110130.0,0.22388]
[1756463885338,0.72731927,110140.0,110130.0,0.22288]
[1756463885553,0.73031927,110140.0,110130.0,0.22288]
[1756463885775,0.72731927,110140.0,110130.0,0.22488]
[1756463886253,0.73031927,110140.0,110130.0,0.22488]
[1756463886458,0.73031927,110140.0,110130.0,0.22288]
[1756463886679,0.73231927,110140.0,110130.0,0.22288]
[1756463887346,0.73231405,110140.0,110130.0,0.22288]
[1756463887576,0.6420603,110140.0,110130.0,0.22288]
[1756463888223,0.59083517,110140.0,110130.0,0.22288]
[1756463890614,0.58883517,110140.0,110130.0,0.22288]
[1756463891043,0.58683517,110140.0,110130.0,0.22288]
[1756463891309,0.58883517,110140.0,110130.0,0.22288]
[1756463892706,0.58580517,110140.0,110130.0,0.22495]
[1756463892912,0.58580517,110140.0,110130.0,0.22288]
[1756463893573,0.58883517,110140.0,110130.0,0.22288]
[1756463894433,0.57179049,110140.0,110130.0,0.22288]
[1756463894642,0.58878429,110140.0,110130.0,0.22288]
[1756463895272,0.66724112,110140.0,110130.0,0.22288]
[1756463896541,0.66421112,110140.0,110130.0,0.22288]
[1756463897386,0.66724112,110140.0,110130.0,0.22288]
[1756463898608,0.58377429,110140.0,110130.0,0.2281]
[1756463899725,0.58277429,110140.0,110130.0,0.40970355]
[1756463900147,0.58177429,110140.0,110130.0,0.40970355]
[1756463900534,0.58077429,110140.0,110130.0,0.40970355]
[1756463900737,0.5807727,110140.0,110130.0,0.40970355]
[1756463901835,0.5807727,110140.0,110130.0,0.41070355]
[1756463905282,0.58077542,110140.0,110130.0,0.41070355]
[1756463906572,0.58077542,110140.0,110130.0,0.41060355]
[1756463908405,0.05918835,110140.0,110130.0,0.41060355]
[1756463909720,0.02232572,110140.0,110130.0,0.41060355]
[1756463911710,0.36001689,110150.0,110140.0,0.18158707]
[1756463911908,0.19578346,110150.0,110140.0,0.18680707]
[1756463912527,0.24563841,110160.0,110140.0,0.18680707]
[1756463912731,0.30443877,110160.0,110150.0,0.15304]
[1756463912939,0.30640877,110160.0,110150.0,0.15304]
[1756463913082,0.18357058,110150.0,110140.0,0.18483707]
[1756463913294,0.18357058,110150.0,110140.0,0.33984707]
[1756463913488,0.18157058,110150.0,110140.0,0.33984707]
[1756463915360,0.18157058,110150.0,110140.0,0.34084707]
[1756463917044,0.18157058,110150.0,110140.0,0.34284707]
[1756463917391,0.58563841,110160.0,110140.0,0.34284707]
[1756463917613,0.58563841,110160.0,110150.0,0.18482058]
[1756463917853,0.58563841,110160.0,110150.0,0.18679058]
[1756463917854,0.02770048,110160.0,110150.0,0.18679058]
[1756463918070,0.1815541,110160.0,110150.0,0.18679058]
[1756463919163,0.22780015,110170.0,110150.0,0.33979058]
[1756463919595,0.56780015,110170.0,110160.0,0.1848041]
[1756463919812,0.56977015,110170.0,110160.0,0.1867741]
[1756463920021,0.56977015,110170.0,110160.0,0.3345541]
[1756463920454,0.56484874,110170.0,110160.0,0.3345541]
[1756463920672,0.56493553,110170.0,110160.0,0.3378041]
[1756463920879,0.56593553,110170.0,110160.0,0.3378041]
[1756463921098,0.56593553,110170.0,110160.0,0.3345541]
[1756463921305,0.56593553,110170.0,110160.0,0.153]
[1756463921818,0.57431413,110170.0,110160.0,0.3345541]
[1756463922025,0.57231413,110170.0,110160.0,0.3345541]
[1756463922238,0.57131413,110170.0,110160.0,0.3345541]
[1756463923093,0.57131413,110170.0,110160.0,0.3355541]
[1756463923342,0.59210379,110170.0,110160.0,0.3375241]
[1756463923556,0.22775059,110170.0,110160.0,0.3407741]
[1756463923720,0.25325879,110170.0,110160.0,0.3407741]
[1756463923936,0.25522879,110170.0,110160.0,0.3407741]
[1756463924200,0.07172117,110170.0,110160.0,0.3407741]
[1756463924403,0.05751022,110170.0,110160.0,0.4106141]
[1756463925862,0.23904784,110170.0,110160.0,0.4106141]
[1756463926226,0.23904784,110170.0,110160.0,0.2576141]
[1756463926439,0.23904784,110170.0,110160.0,0.4106141]
[1756463926860,0.22416651,110170.0,110160.0,0.4106141]
[1756463927064,0.24099906,110170.0,110160.0,0.4106141]
[1756463928624,0.24099906,110170.0,110160.0,0.4073641]
[1756463929128,0.24099906,110170.0,110160.0,0.4105441]
[1756463929985,0.25520781,110170.0,110160.0,0.4105441]
[1756463930631,0.2532365,110170.0,110160.0,0.4105441]
[1756463932135,0.07169888,110170.0,110160.0,0.4105441]
[1756463932314,0.05749013,110170.0,110160.0,0.4105441]
[1756463934196,0.05748867,110170.0,110160.0,0.4105441]
[1756463934806,0.23902629,110170.0,110160.0,0.4105441]
[1756463935784,0.23902629,110170.0,110160.0,0.4105041]
[1756463936312,0.25323502,110170.0,110160.0,0.4105041]
[1756463937716,0.25324694,110170.0,110160.0,0.4105041]
[1756463939588,0.25525694,110170.0,110160.0,0.4105041]
[1756463941003,0.25525945,110170.0,110160.0,0.4105041]
[1756463941575,0.07171183,110170.0,110160.0,0.4105041]
[1756463941804,0.07171183,110170.0,110160.0,0.49880042]
[1756463942037,0.0461752,110170.0,110160.0,1.746385]
[1756463942255,0.02558853,110170.0,110160.0,1.746385]
[1756463943092,0.00858737,110170.0,110160.0,2.92561208]
[1756463943307,0.00858737,110170.0,110160.0,1.76632382]
[1756463943523,0.00958737,110170.0,110160.0,1.64009669]
[1756463943821,0.00958737,110170.0,110160.0,0.45907556]
[1756463944061,0.00958737,110170.0,110160.0,1.55376037]
[1756463947452,0.00959003,110170.0,110160.0,1.55376037]
[1756463950428,0.02659359,110170.0,110160.0,1.55376037]
[1756463957065,0.00959003,110170.0,110160.0,2.9238215]
[1756463957497,0.00959003,110170.0,110160.0,2.9511145]
[1756463957695,0.00959003,110170.0,110160.0,3.03941082]
[1756463958127,0.0095885,110170.0,110160.0,3.03941082]
[1756463958344,0.0085885,110170.0,110160.0,3.03641082]
[1756463958553,0.0085885,110170.0,110160.0,2.00430969]
[1756463958765,0.0085885,110170.0,110160.0,3.03437082]
[1756463959197,8.679e-05,110170.0,110160.0,3.03737082]
[1756463959413,8.679e-05,110170.0,110160.0,3.04037082]
[1756463959687,8.679e-05,110170.0,110160.0,3.04033082]
[1756463962083,8.679e-05,110170.0,110160.0,0.82736856]
[1756463962307,8.679e-05,110170.0,110160.0,2.01026969]
[1756463962974,8.679e-05,110170.0,110160.0,3.04033082]
[1756463963448,8.679e-05,110170.0,110160.0,3.29727226]
[1756463964108,8.679e-05,110170.0,110160.0,3.14443226]
[1756463964345,8.679e-05,110170.0,110160.0,3.29727226]
[1756463970930,1e-08,110170.0,110160.0,3.39727226]
[1756463971164,1e-08,110170.0,110160.0,4.55580411]
[1756463971371,1e-08,110170.0,110160.0,3.41548226]
[1756463971572,1e-08,110170.0,110160.0,3.81548226]
[1756463972179,1e-08,110170.0,110160.0,4.97101411]
[1756463972384,1e-08,110170.0,110160.0,4.97501411]
[1756463973226,1e-08,110170.0,110160.0,5.06774411]
[1756463973427,1e-08,110170.0,110160.0,3.65309414]
[1756463973829,1e-08,110170.0,110160.0,3.64909414]
[1756463974062,1e-08,110170.0,110160.0,3.65309414]
[1756463974424,1e-08,110170.0,110160.0,3.65109414]
[1756463974849,1e-08,110170.0,110160.0,3.65509414]
[1756463981265,1e-08,110170.0,110160.0,3.65501414]
[1756463984791,1e-08,110170.0,110160.0,3.50225414]
[1756463984994,1e-08,110170.0,110160.0,3.65497414]
[1756463986452,1e-08,110170.0,110160.0,3.50225414]
[1756463986617,1e-08,110170.0,110160.0,3.65497414]
[1756463988196,0.00304,110200.0,110190.0,1.23191628]
[1756463988352,0.01154321,110200.0,110190.0,1.6251858]
[1756463988572,0.01352321,110200.0,110190.0,1.6251858]
[1756463988938,0.01048321,110200.0,110190.0,1.6524708]
[1756463989601,0.01048321,110200.0,110190.0,1.6534708]
[1756463990057,0.01048321,110200.0,110190.0,1.67212238]
[1756463990274,0.01048321,110200.0,110190.0,1.67312238]
[1756463990639,0.01048295,110200.0,110190.0,1.67312238]
[1756463991658,0.01048295,110200.0,110190.0,1.67520238]
[1756463991881,0.01048295,110200.0,110190.0,1.67836238]
[1756463992700,0.01048295,110200.0,110190.0,2.01836238]
[1756463993548,0.01048295,110200.0,110190.0,2.45862019]
[1756463994686,0.01048295,110200.0,110190.0,2.45858019]
[1756463995337,0.01048295,110200.0,110190.0,3.58715036]
[1756463995515,0.01048295,110200.0,110190.0,3.73983036]
[1756463999775,0.01048295,110200.0,110190.0,3.74299036]
[1756463999929,0.01048295,110200.0,110190.0,3.74507036]
[1756464001166,0.00198,110200.0,110190.0,3.74507036]
[1756464001826,0.01148026,110220.0,110200.0,0.20242702]
[1756464002046,0.01537101,110220.0,110210.0,1.56189321]
[1756464002259,0.03239153,110220.0,110210.0,1.56189321]
[1756464002481,0.03454153,110220.0,110210.0,1.56189321]
[1756464002689,0.03740153,110220.0,110210.0,1.56189321]
[1756464003131,0.03840153,110220.0,110210.0,1.56189321]
[1756464003363,0.03940153,110220.0,110210.0,0.40391173]
[1756464003999,0.03940153,110220.0,110210.0,1.56189321]
[1756464004627,0.03840153,110220.0,110210.0,1.56189321]
[1756464005130,0.03940153,110220.0,110210.0,1.56189321]
[1756464005997,0.2208568,110220.0,110210.0,0.25127173]
[1756464006206,0.03940153,110220.0,110210.0,0.40391173]
[1756464008234,0.23505766,110220.0,110210.0,0.40391173]
[1756464009421,0.23505766,110220.0,110210.0,0.0698]
[1756464009777,0.2344588,110220.0,110210.0,0.22244]
[1756464010437,0.2617478,110220.0,110210.0,0.22244]
[1756464010652,0.2617478,110220.0,110210.0,0.0698]
[1756464010878,0.2617478,110220.0,110210.0,0.2224]
[1756464011085,0.63136837,110220.0,110210.0,0.0698]
[1756464011312,0.6480311,110220.0,110210.0,0.2224]
[1756464011937,0.6470311,110220.0,110210.0,0.2224]
[1756464012144,0.6460311,110220.0,110210.0,0.2224]
[1756464012352,0.6500311,110220.0,110210.0,0.2224]
[1756464013637,0.6550311,110220.0,110210.0,0.2224]
[1756464014052,0.6460311,110220.0,110210.0,0.2224]
[1756464014257,0.6530311,110220.0,110210.0,0.2224]
[1756464014458,0.63341391,110220.0,110210.0,0.2224]
[1756464014686,0.64761668,110220.0,110210.0,0.2224]
[1756464014891,0.64461668,110220.0,110210.0,0.2224]
[1756464015287,0.64661668,110220.0,110210.0,0.2224]
[1756464018606,0.64061668,110220.0,110210.0,0.2224]
[1756464019021,0.64161668,110220.0,110210.0,0.2224]
[1756464020051,0.62745456,110220.0,110210.0,0.2224]
[1756464020352,0.58081347,110220.0,110210.0,0.2224]
[1756464020786,0.58081347,110220.0,110210.0,0.2124]
[1756464021627,0.58718566,110220.0,110210.0,0.2124]
[1756464022023,0.56378324,110220.0,110210.0,0.2124]
[1756464022231,0.58714795,110220.0,110210.0,0.2124]
[1756464025284,0.66632906,110220.0,110210.0,0.2124]
[1756464025482,0.66632906,110220.0,110210.0,0.21558]
[1756464025684,0.58714795,110220.0,110210.0,0.21558]
[1756464025900,0.58714795,110220.0,110210.0,0.06298]
[1756464026044,0.58714795,110220.0,110210.0,0.21558]
[1756464027585,0.58714795,110220.0,110210.0,0.21771]
[1756464027787,0.58714795,110220.0,110210.0,0.39918173]
[1756464028646,0.06569268,110220.0,110210.0,0.39918173]
[1756464028816,0.02636471,110220.0,110210.0,0.39918173]
[1756464029465,0.02536471,110220.0,110210.0,0.39918173]
[1756464030506,0.20481998,110220.0,110210.0,0.39918173]
[1756464030842,0.02436471,110220.0,110210.0,0.39918173]
[1756464031560,0.02436471,110220.0,110210.0,0.45724855]
[1756464031947,0.03286197,110220.0,110210.0,0.45724855]
[1756464032720,0.19944779,110220.0,110210.0,0.45724855]
[1756464032976,0.21432513,110220.0,110210.0,0.45724855]
[1756464033431,0.0328707,110220.0,110210.0,0.45724855]
[1756464033634,0.0328707,110220.0,110210.0,0.39918173]
[1756464033841,0.0328707,110220.0,110210.0,0.24658173]
[1756464034043,0.0328707,110220.0,110210.0,0.39914173]
[1756464035178,0.0470707,110220.0,110210.0,0.39914173]
[1756464035733,0.0470707,110220.0,110210.0,0.45720455]
[1756464037827,0.04707235,110220.0,110210.0,0.45720455]
[1756464038027,0.04069673,110220.0,110210.0,0.30464455]
[1756464038253,0.04069673,110220.0,110210.0,0.45720455]
[1756464038474,0.04069673,110220.0,110210.0,0.45716455]
[1756464039215,0.04069673,110220.0,110210.0,0.30464455]
[1756464039455,0.04069673,110220.0,110210.0,0.45716455]
[1756464039665,0.04069673,110220.0,110210.0,0.39910173]
[1756464040758,0.03969673,110220.0,110210.0,0.44023534]
[1756464040996,0.03969673,110220.0,110210.0,0.44123534]
[1756464042304,0.03969673,110220.0,110210.0,0.28871534]
[1756464042470,0.03969673,110220.0,110210.0,0.44123534]
[1756464043349,0.03969673,110220.0,110210.0,0.50623602]
[1756464043565,0.03119587,110220.0,110210.0,0.35371602]
[1756464043803,0.0396938,110220.0,110210.0,0.50623602]
[1756464044212,0.0396938,110220.0,110210.0,0.44123534]
[1756464045607,0.0396938,110220.0,110210.0,0.28871534]
[1756464046013,0.0396938,110220.0,110210.0,0.44123534]
[1756464046950,0.0396938,110220.0,110210.0,1.5994099]
[1756464049299,0.0396938,110220.0,110210.0,1.70864504]
[1756464049466,0.00849793,110220.0,110210.0,1.79694136]
[1756464049683,0.00849793,110220.0,110210.0,1.82422436]
[1756464051378,0.00849793,110220.0,110210.0,1.84069693]
[1756464053868,0.00849793,110220.0,110210.0,1.68817693]
[1756464054085,0.00849793,110220.0,110210.0,1.82418436]
[1756464054292,0.00849793,110220.0,110210.0,0.6660098]
[1756464054501,0.0226987,110230.0,110220.0,0.18145527]
[1756464054743,0.03974442,110230.0,110220.0,1.58040615]
[1756464054892,0.03974442,110230.0,110220.0,1.58577615]
[1756464055312,0.03974769,110230.0,110220.0,1.58577615]
[1756464055628,0.04074769,110230.0,110220.0,1.58577615]
[1756464057434,0.04074769,110230.0,110220.0,0.42760159]
[1756464057655,0.04074769,110230.0,110220.0,1.58577615]
[1756464058675,0.04074769,110230.0,110220.0,1.43329615]
[1756464058871,0.04074769,110230.0,110220.0,1.58573615]
[1756464060276,0.04074769,110230.0,110220.0,0.27512159]
[1756464060455,0.04074769,110230.0,110220.0,0.42543159]
[1756464061187,0.04074769,110230.0,110220.0,0.42756159]
[1756464061394,0.04074769,110230.0,110220.0,0.27512159]
[1756464061623,0.22218649,110230.0,110220.0,0.18682527]
[1756464061836,0.04712704,110230.0,110220.0,0.33389527]
[1756464062309,0.04712704,110230.0,110220.0,0.33713527]
[1756464064012,0.03862806,110230.0,110220.0,0.33713527]
[1756464064238,0.04714925,110230.0,110220.0,0.33713527]
[1756464064779,0.25484678,110230.0,110210.0,0.24127173]
[1756464064990,0.25484678,110230.0,110220.0,0.33389527]
[1756464066950,0.07340798,110230.0,110220.0,0.33926527]
[1756464067165,0.07240798,110230.0,110220.0,0.33926527]
[1756464067383,0.04614962,110230.0,110220.0,0.33926527]
[1756464067565,0.04714962,110230.0,110220.0,0.33926527]
[1756464067778,0.04614962,110230.0,110220.0,0.33926527]
[1756464067984,0.04714962,110230.0,110220.0,0.33926527]
[1756464071270,0.04715526,110230.0,110220.0,0.33926527]
[1756464071674,0.25485302,110230.0,110220.0,0.33709527]
[1756464072023,0.18145527,110220.0,110210.0,0.06304]
[1756464072216,0.21336305,110220.0,110210.0,0.0598]
[1756464072439,0.21336305,110220.0,110210.0,0.39367173]
[1756464072662,0.25830271,110220.0,110210.0,0.39367173]
[1756464072889,0.21336305,110220.0,110210.0,0.39691173]
[1756464073575,0.21336305,110220.0,110210.0,0.21544]
[1756464073850,0.2133634,110220.0,110210.0,0.2122]
[1756464074059,0.2406514,110220.0,110210.0,0.2132]
[1756464074283,0.28549109,110220.0,110210.0,0.0608]
[1756464074559,0.28549109,110220.0,110210.0,0.2132]
[1756464074739,0.27698053,110220.0,110210.0,0.2132]
[1756464074870,0.28549486,110220.0,110210.0,0.2132]
[1756464075083,0.28549486,110220.0,110210.0,0.2122]
[1756464075795,0.28649486,110220.0,110210.0,0.2122]
[1756464076219,0.28649486,110220.0,110210.0,0.0598]
[1756464076649,0.62649486,110220.0,110210.0,0.2122]
[1756464077215,0.62649486,110220.0,110210.0,0.1524]
[1756464078116,0.61565663,110220.0,110210.0,0.1524]
[1756464085371,0.61565663,110220.0,110210.0,0.15763]
[1756464085545,0.59861892,110220.0,110210.0,0.15763]
[1756464085761,0.57074932,110220.0,110210.0,0.15763]
[1756464085915,0.5537657,110220.0,110210.0,0.15763]
[1756464086123,0.57074907,110220.0,110210.0,0.15763]
[1756464089234,0.57074942,110220.0,110210.0,0.15763]
[1756464092799,0.57075511,110220.0,110210.0,0.15763]
[1756464096408,0.57077041,110220.0,110210.0,0.15763]
[1756464096872,0.57077099,110220.0,110210.0,0.15763]
[1756464102299,0.59038461,110220.0,110210.0,0.15763]
[1756464103660,0.59039793,110220.0,110210.0,0.15763]
[1756464105313,0.59039793,110220.0,110210.0,0.00523]
[1756464105695,0.59039793,110220.0,110210.0,0.15759]
[1756464106289,0.59239793,110220.0,110210.0,0.1516805]
[1756464107393,0.59247698,110220.0,110210.0,0.1516805]
[1756464107594,0.59247698,110220.0,110210.0,0.1537405]
[1756464108382,0.59247698,110220.0,110210.0,0.1569105]
[1756464109477,0.59247698,110220.0,110210.0,0.00523]
[1756464109707,0.59247698,110220.0,110210.0,0.15442]
[1756464110105,0.59247698,110220.0,110210.0,0.15758]
[1756464113795,0.67667935,110220.0,110210.0,0.15758]
[1756464114033,0.18147173,110210.0,110200.0,0.25444675]
[1756464114242,0.21343005,110210.0,110200.0,0.40680675]
[1756464114430,0.2124312,110210.0,110200.0,0.40888675]
[1756464116085,0.2124312,110210.0,110200.0,0.40988675]
[1756464116654,0.2124312,110210.0,110200.0,0.40888675]
[1756464117574,0.2124312,110210.0,110200.0,0.2274]
[1756464117794,0.2124312,110210.0,110200.0,0.4088882]
[1756464118002,0.2039091,110210.0,110200.0,0.4088882]
[1756464118234,0.21243243,110210.0,110200.0,0.4088882]
[1756464118454,0.27809099,110210.0,110200.0,0.4088882]
[1756464118695,0.28661381,110210.0,110200.0,0.4088882]
[1756464118922,0.28761381,110210.0,110200.0,0.4088882]
[1756464119704,0.28761381,110210.0,110200.0,0.2565282]
[1756464119933,0.28970381,110210.0,110200.0,0.0698]
[1756464120158,0.29284381,110210.0,110200.0,0.0698]
[1756464120390,0.29284381,110210.0,110200.0,0.22216]
[1756464120621,0.1814882,110200.0,110190.0,0.00316]
[1756464120816,0.26088207,110200.0,110190.0,0.15552]
[1756464121050,0.26088275,110200.0,110190.0,0.1576]
[1756464121493,0.26297275,110200.0,110190.0,0.1576]
[1756464122541,0.26088275,110200.0,110190.0,0.33910467]
[1756464122896,0.26088275,110200.0,110190.0,0.34010467]
[1756464123416,0.26088275,110200.0,110190.0,0.1586]
[1756464123851,0.26088275,110200.0,110190.0,0.34010467]
[1756464126028,0.26088275,110200.0,110190.0,0.1586]
[1756464126612,0.26292275,110200.0,110190.0,0.15336]
[1756464126818,0.26611275,110200.0,110190.0,0.15332]
[1756464127523,0.25758953,110200.0,110190.0,0.15332]
[1756464127728,0.26607777,110200.0,110190.0,0.15332]
[1756464128577,0.26607648,110200.0,110190.0,0.15332]
[1756464128790,0.26807648,110200.0,110190.0,0.15332]
[1756464129216,0.29337148,110200.0,110190.0,0.15232]
[1756464129438,0.29437148,110200.0,110190.0,0.15232]
[1756464129648,0.29537148,110200.0,110190.0,0.15232]
[1756464130303,0.29118148,110200.0,110190.0,0.15232]
[1756464131135,0.29117303,110200.0,110190.0,0.15232]
[1756464131342,0.29116866,110200.0,110190.0,0.15232]
[1756464131558,0.29116866,110200.0,110190.0,0.1544]
[1756464132710,0.29116866,110200.0,110190.0,0.15756]
[1756464138379,0.28265933,110200.0,110190.0,0.15756]
[1756464138494,0.29115504,110200.0,110190.0,0.15756]
[1756464138820,0.29115498,110200.0,110190.0,0.15756]
[1756464143588,0.24168178,110200.0,110190.0,0.33906467]
[1756464144266,0.21438678,110200.0,110190.0,0.33906467]
[1756464144686,0.21438678,110200.0,110190.0,1.49749411]
[1756464144890,0.21438678,110200.0,110190.0,1.31598944]
[1756464145110,0.21438678,110200.0,110190.0,0.00524]
[1756464145258,0.21438678,110200.0,110190.0,1.49976291]
[1756464145464,0.21438678,110200.0,110190.0,1.49749411]
[1756464145689,0.24167978,110200.0,110190.0,1.49749411]
[1756464146461,0.06019158,110200.0,110190.0,1.49749411]
[1756464147045,0.24167978,110200.0,110190.0,1.49749411]
[1756464149019,0.23530005,110200.0,110190.0,1.49749411]
[1756464149225,0.24171332,110200.0,110190.0,1.49749411]
[1756464153743,0.28535228,110200.0,110190.0,1.34517411]
[1756464154050,0.28535228,110200.0,110190.0,1.49745411]